fUSD/lending_fUSD_20240905
["ID","MTS","AMOUNT","RATE_DAILY","PERIOD"]
[337246795,1725548730598,150.0,0.00013618,2]
[337246796,1725548730922,150.0,0.0001364,2]
[337246797,1725548731230,150.0,0.00013661,2]
[337246798,1725548731555,150.0,0.00013683,2]
[337246799,1725548731885,150.0,0.00013705,2]
[337246800,1725548732246,150.0,0.00013727,2]
[337246801,1725548732631,150.0,0.00013748,2]
[337246802,1725548732957,150.0,0.0001377,2]
[337246803,1725548733970,150.0,0.00013792,2]
[337246804,1725548734371,150.0,0.00013813,2]
[337246805,1725548734698,0.75888206,0.00013835,2]
[337246806,1725548734725,149.24111794,0.00013835,2]
[337246807,1725548735038,150.0,0.00013857,2]
[337246808,1725548735430,150.0,0.00013879,2]
[337246809,1725548735759,150.0,0.000139,2]
[337246810,1725548736078,150.0,0.00013922,2]
[337246811,1725548741485,157.87,0.00010959,2]
[337246812,1725548763388,150.0,0.00013488,2]
[337246813,1725548781191,23942.88888206,0.000139,2]
[337246814,1725548781214,25000.0,0.000139,2]
[337246815,1725548781237,25000.0,0.000139,2]
[337246816,1725548781261,25000.0,0.000139,2]
[337246817,1725548781285,12336.14448292,0.000139,2]
[337246818,1725548781312,13482.96663502,0.000139,2]
[337246820,1725548950054,250.0,0.00013542,2]
[337246821,1725548971851,11267.03336498,0.000139,3]
[337246822,1725548971875,238.96663502,0.000139,3]
[337246840,1725549031524,-150.0,0.00013944,2]
[337246843,1725549031536,-175.99,0.00013949,2]
[337246848,1725549031552,-150.11,0.00013949,2]
[337246851,1725549031566,-150.0,0.00013949,3]
[337246853,1725549031579,-150.0,0.00013949,3]
[337246856,1725549031590,-150.0,0.00013965,2]
[337246857,1725549031601,-359.79,0.00013968,2]
[337246858,1725549031612,-150.0,0.00013969,2]
[337246859,1725549031624,-150.0,0.00013987,2]
[337246860,1725549031635,-4859.3060606,0.00014,2]
[337246861,1725549031646,-409.92,0.00014007,2]
[337246862,1725549031656,-150.0,0.00014009,2]
[337246863,1725549031667,-2641.75,0.00014009,2]
[337246864,1725549031679,-150.0,0.00014023,2]
[337246865,1725549031690,-150.0,0.00014031,2]
[337246866,1725549031701,-150.0,0.0001405,2]
[337246867,1725549031712,-150.0,0.00014052,2]
[337246868,1725549031727,-150.0,0.00014074,2]
[337246869,1725549031738,-150.0,0.00014076,2]
[337246870,1725549031749,-150.0,0.00014096,2]
[337246871,1725549031760,-150.0,0.00014118,2]
[337246872,1725549031770,-150.0,0.0001413,2]
[337246873,1725549031781,-150.0,0.00014139,2]
[337246874,1725549031791,-150.0,0.00014161,2]
[337246875,1725549031802,-150.0,0.00014183,2]
[337246876,1725549031813,-147.28796102,0.00014183,2]
[337246877,1725549031826,-2.71203898,0.00014183,2]
[337246878,1725549031837,-150.0,0.00014183,2]
[337246879,1725549031847,-150.0,0.00014204,2]
[337246880,1725549031858,-281.47,0.00014205,2]
[337246881,1725549031868,-150.0,0.00014226,2]
[337246882,1725549031879,-192.24,0.00014232,2]
[337246883,1725549031890,-150.0,0.00014237,2]
[337246884,1725549031900,-150.0,0.00014237,2]
[337246885,1725549031911,-150.0,0.00014237,2]
[337246886,1725549031921,-150.0,0.00014248,2]
[337246887,1725549031932,-391.8721489,0.00014248,2]
[337246888,1725549031947,-75.2078511,0.00014248,2]
[337246889,1725549031958,-150.0,0.0001427,2]
[337246890,1725549031969,-150.0,0.00014291,2]
[337246891,1725549031986,-150.0,0.00014291,2]
[337246892,1725549031996,-224.59,0.000143,2]
[337246893,1725549032007,-791.84,0.000143,2]
[337246894,1725549032017,-791.84,0.000143,2]
[337246895,1725549032027,-790.36,0.000143,2]
[337246896,1725549032037,-150.0,0.00014313,2]
[337246897,1725549032048,-150.0,0.00014335,2]
[337246898,1725549032058,-150.0,0.00014344,2]
[337246899,1725549032068,-150.0,0.00014356,2]
[337246900,1725549032078,-150.0,0.00014378,2]
[337246901,1725549032089,-150.0,0.00014398,2]
[337246902,1725549032099,-150.0,0.000144,2]
[337246903,1725549032109,-791.84,0.000144,2]
[337246904,1725549032120,-784.3221489,0.000144,5]
[337246905,1725549032133,-1354.61142599,0.000144,5]
[337246907,1725549032146,-9367.06642511,0.000144,5]
[337246909,1725549032156,-422.04,0.000144,2]
[337246911,1725549032167,-150.0,0.00014422,2]
[337246913,1725549032178,-150.0,0.00014424,2]
[337246915,1725549032188,-150.0,0.00014443,2]
[337246917,1725549032199,-150.0,0.00014451,2]
[337246919,1725549032209,-150.0,0.00014465,2]
[337246921,1725549032222,-66.58357742,0.00014487,2]
[337246924,1725549032243,-83.41642258,0.00014487,2]
[337246926,1725549032252,-150.0,0.00014505,2]
[337246928,1725549032262,-150.0,0.00014508,2]
[337246929,1725549032273,-150.0,0.0001453,2]
[337246931,1725549032282,-150.0,0.00014552,2]
[337246933,1725549032292,-150.0,0.00014558,2]
[337246935,1725549032302,-150.0,0.00014574,2]
[337246937,1725549032581,-150.0,0.00014595,2]
[337246938,1725549032596,-150.0,0.00014612,2]
[337246939,1725549032608,-150.0,0.00014612,2]
[337246940,1725549032618,-150.0,0.00014617,2]
[337246941,1725549032627,-150.0,0.00014639,2]
[337246942,1725549032637,-150.0,0.00014661,2]
[337246943,1725549032647,-150.0,0.00014665,2]
[337246944,1725549032656,-359.79,0.00014667,2]
[337246945,1725549032665,-150.0,0.00014682,2]
[337246946,1725549032675,-150.0,0.00014704,2]
[337246947,1725549032685,-150.0,0.00014719,2]
[337246948,1725549032694,-150.0,0.00014726,2]
[337246949,1725549032704,-150.0,0.00014747,2]
[337246950,1725549032715,-150.0,0.00014769,2]
[337246951,1725549032728,-150.0,0.00014772,2]
[337246952,1725549032738,-150.0,0.00014791,2]
[337246953,1725549032748,-1435.8697,0.00014799,2]
[337246954,1725549032759,-150.0,0.00014799,2]
[337246955,1725549032768,-150.0,0.00014813,2]
[337246956,1725549032778,-1098.02640668,0.00014821,2]
[337246957,1725549032790,-369.05917728,0.00014821,2]
[337246958,1725549032800,-129.50215468,0.00014826,2]
[337246959,1725549032811,-20.49784532,0.00014826,2]
[337246960,1725549032822,-255.12405129,0.0001483,2]
[337246961,1725549032833,-874.07841098,0.0001483,2]
[337246962,1725549032844,-337.88312169,0.0001483,2]
[337246963,1725549032853,-150.0,0.00014834,2]
[337246964,1725549032862,-656.15393262,0.00014839,2]
[337246965,1725549032875,-700.0,0.00014839,2]
[337246966,1725549032886,-110.93165134,0.00014839,2]
[337246967,1725549032895,-1467.08558396,0.00014847,2]
[337246968,1725549032905,-3344.898635,0.0001485,2]
[337246969,1725549032917,-54.34034011,0.0001485,2]
[337246970,1725549032928,-472.31422,0.0001485,2]
[337246971,1725549032938,-150.0,0.00014856,2]
[337246972,1725549032948,-426.90257464,0.00014856,2]
[337246973,1725549032963,-1040.18300932,0.00014856,2]
[337246974,1725549032974,-1467.08558396,0.00014865,2]
[337246975,1725549032984,-1467.08558396,0.00014874,2]
[337246976,1725549032993,-150.0,0.00014878,2]
[337246977,1725549033004,-150.0,0.00014879,2]
[337246978,1725549033013,-1467.08558396,0.00014882,2]
[337246979,1725549033022,-6483.2338,0.00014888,2]
[337246980,1725549033032,-1067.62610778,0.00014888,2]
[337246988,1725549037590,-253.233519,0.00014247,2]
[337246989,1725549037600,-109.51679222,0.00014888,2]
[337246990,1725549037611,-1078.0,0.00014891,2]
[337246991,1725549037622,-1467.08558396,0.00014891,2]
[337246992,1725549037632,-2155.8422,0.00014892,2]
[337246993,1725549037642,-2063.21636462,0.00014893,2]
[337246995,1725549037668,-3786.39243538,0.00014893,2]
[337246996,1725549037678,-678.809,0.00014897,2]
[337246997,1725549037687,-2320.63,0.00014897,2]
[337246998,1725549037697,-307.6044,0.00014899,2]
[337246999,1725549037706,-2062.6928,0.00014899,2]
[337247000,1725549037715,-282.3496,0.00014899,2]
[337247001,1725549037725,-1358.48176462,0.00014899,2]
[337247002,1725549037739,-219.11443538,0.00014899,2]
[337247003,1725549037749,-503.13772862,0.00014899,2]
[337247004,1725549037758,-19.86413514,0.00014899,2]
[337247005,1725549037769,-277.0527081,0.00014899,2]
[337247006,1725549037780,-208.2459931,0.00014899,2]
[337247007,1725549037789,-516.51364878,0.00014899,2]
[337247008,1725549037798,-500.0,0.00014899,2]
[337247009,1725549037807,-1387.51753936,0.00014899,2]
[337247010,1725549037819,-299.58797889,0.00014899,2]
[337247011,1725549037830,-75.32448175,0.00014899,2]
[337247012,1725549037840,-150.0,0.00014899,2]
[337247013,1725549037849,-7747.5642664,0.000149,2]
[337247014,1725549037860,-1191.41310921,0.000149,2]
[337247015,1725549037885,-10057.64443999,0.000149,2]
[337247016,1725549037900,-868.5,0.000149,2]
[337247017,1725549038050,-3330.63423482,0.000149,2]
[337247018,1725549038061,-1267.25203206,0.000149,2]
[337247019,1725549038072,-887.83016339,0.000149,2]
[337247020,1725549038114,-2665.46919121,0.000149,2]
[337247021,1725549038125,-595.83075586,0.000149,2]
[337247022,1725549038137,-51967.84364031,0.000149,2]
[337247023,1725549038146,-203.99758445,0.000149,2]
[337247024,1725549038156,-1467.08558396,0.000149,2]
[337247025,1725549038165,-150.0,0.00014921,2]
[337247026,1725549038174,-150.0,0.00014933,2]
[337247027,1725549038183,-150.0,0.00014943,2]
[337247028,1725549038192,-150.0,0.00014965,2]
[337247029,1725549038202,-500.0,0.00014973,2]
[337247030,1725549038211,-500.0,0.00014973,2]
[337247031,1725549038220,-150.00000068,0.00014986,2]
[337247032,1725549038233,-150.00000012,0.00014986,2]
[337247033,1725549038242,-150.0,0.00014986,2]
[337247034,1725549038251,-151.03666635,0.00014986,2]
[337247035,1725549038261,-500.0,0.00014988,2]
[337247036,1725549038270,-500.0,0.00014988,2]
[337247038,1725549038279,-500.0,0.00014988,2]
[337247039,1725549038288,-472.39391456,0.00014988,2]
[337247041,1725549038298,-508.21740793,0.00014988,2]
[337247043,1725549038307,-507.29543353,0.00014988,2]
[337247045,1725549038316,-514.15296751,0.00014988,2]
[337247046,1725549038326,-500.0,0.00014988,2]
[337247048,1725549038335,-500.0,0.00014988,2]
[337247049,1725549038344,-500.0,0.00014988,2]
[337247050,1725549038354,-238.63170135,0.00014988,2]
[337247051,1725549038363,-502.21935321,0.00014988,2]
[337247052,1725549038372,-500.0,0.00014988,2]
[337247053,1725549038381,-500.0,0.00014988,2]
[337247054,1725549038390,-500.0,0.00014988,2]
[337247055,1725549038399,-495.47658678,0.00014988,2]
[337247056,1725549038408,-440.19247083,0.00014988,2]
[337247057,1725549038418,-557.05,0.00014988,2]
[337247058,1725549038427,-746.90666676,0.00014988,3]
[337247059,1725549038436,-373.45333338,0.00014989,3]
[337247060,1725549038445,-48555.41485814,0.00014989,3]
[337247061,1725549038457,-15061.86977785,0.00014989,3]
[337247062,1725549038467,-56443.91980083,0.00014989,3]
[337247064,1725549039624,-420.525589,0.0001466,2]
[337247065,1725549039634,-1067.39875399,0.00014989,3]
[337247066,1725549039645,-387.72733961,0.00014989,3]
[337247067,1725549039657,-4905.37844259,0.00014989,3]
[337247068,1725549039670,-18918.55938786,0.00014989,3]
[337247069,1725549039682,-283.0,0.00014989,3]
[337247070,1725549039694,-289.12142234,0.00014989,3]
[337247071,1725549039705,-298.31412405,0.00014989,3]
[337247072,1725549039717,-342.108,0.00014989,3]
[337247073,1725549039734,-1391.73850551,0.00014989,3]
[337247074,1725549039843,-1447.08866371,0.00014989,3]
[337247075,1725549039855,-352.75909744,0.00014989,3]
[337247076,1725549040006,-5843.81203055,0.00014989,3]
[337247077,1725549040018,-230.92957253,0.00014989,3]
[337247078,1725549040028,-88.45775014,0.00014992,2]
[337247079,1725549040039,-355.18009143,0.00014992,2]
[337247080,1725549040050,-113.41215843,0.00014992,2]
[337247081,1725549040060,-142.73106157,0.00014992,2]
[337247082,1725549040075,-337.374,0.00014992,2]
[337247103,1725549042554,-366.07600582,0.00014898,2]
[337247104,1725549042563,-2401.41493843,0.00014992,2]
[337247106,1725549042573,-1039.74,0.00014992,2]
[337247108,1725549042584,-837.26,0.00014992,2]
[337247110,1725549042593,-2238.65,0.00014992,2]
[337247112,1725549042603,-500.0,0.00014992,2]
[337247114,1725549042612,-500.0,0.00014992,2]
[337247116,1725549042623,-500.0,0.00014992,2]
[337247118,1725549042633,-1644.0,0.00014992,2]
[337247120,1725549042643,-1997.11,0.00014992,2]
[337247122,1725549042652,-646.17,0.00014992,2]
[337247124,1725549042662,-1709.87,0.00014992,2]
[337247126,1725549042671,-675.76363659,0.00014992,2]
[337247129,1725549042683,-420.13636341,0.00014992,2]
[337247131,1725549042691,-157.86363659,0.00014992,2]
[337247133,1725549042702,-708.88355157,0.00014992,2]
[337247135,1725549042718,-320.26401847,0.00014992,2]
[337247138,1725549042731,-652.47879337,0.00014992,2]
[337247140,1725549042740,-476.64920663,0.00014992,2]
[337247142,1725549042751,-425.50000003,0.00014992,2]
[337247144,1725549042763,-1326.13079334,0.00014992,2]
[337247146,1725549042772,-1585.25,0.00014992,2]
[337247148,1725549042782,-1007.41028716,0.00014992,2]
[337247150,1725549042794,-805.11971284,0.00014992,2]
[337247152,1725549042803,-500.0,0.00014992,2]
[337247154,1725549042813,-500.0,0.00014992,2]
[337247156,1725549042823,-158.83652367,0.00014992,2]
[337247164,1725549043117,-750.28347633,0.00014992,2]
[337247165,1725549043127,-51.77992526,0.00014992,2]
[337247166,1725549043138,-612.5,0.00014992,2]
[337247167,1725549043150,-307.60437692,0.00014992,2]
[337247168,1725549043162,-175.52569782,0.00014992,2]
[337247169,1725549043172,-181.83805886,0.00014992,2]
[337247173,1725549045503,-500.0,0.00014899,2]
[337247174,1725549045514,-500.0,0.00014899,2]
[337247175,1725549045524,-500.0,0.00014899,2]
[337247176,1725549045535,-500.0,0.00014899,2]
[337247177,1725549045549,-6198.29194114,0.00014992,2]
[337247178,1725549045559,-500.0,0.00014992,2]
[337247179,1725549045569,-395.88358369,0.00014992,2]
[337247180,1725549045740,-1293.11641631,0.00014992,2]
[337247181,1725549045758,-121.29475369,0.00014993,2]
[337247182,1725549045770,-593.22499998,0.00014993,2]
[337247183,1725549045789,-500.0,0.00014899,2]
[337247184,1725549045798,-500.0,0.00014899,2]
[337247185,1725549045808,-698.3,0.00014993,2]
[337247186,1725549045819,-5791.56,0.00014993,2]
[337247187,1725549045830,-5.67523733,0.00014993,2]
[337247188,1725549045839,-427.09592523,0.00014993,2]
[337247189,1725549045855,-230.67768877,0.00014993,2]
[337247191,1725549045864,-619.32231123,0.00014993,2]
[337247193,1725549045875,-346.76974357,0.00014993,2]
[337247195,1725549045889,-7460.03516841,0.00014993,2]
[337247197,1725549045901,-612.5,0.00014993,2]
[337247199,1725549045912,-4553.8190213,0.00014993,2]
[337247202,1725549045931,-468.99043677,0.00014899,2]
[337247204,1725549045940,-500.0,0.00014899,2]
[337247206,1725549045949,-4055.88989815,0.00014993,2]
[337247208,1725549045960,-768.85,0.00014993,2]
[337247210,1725549045971,-15048.78625574,0.00014993,2]
[337247212,1725549045981,-500.0,0.00014997,2]
[337247214,1725549045991,-500.0,0.00014997,2]
[337247216,1725549046000,-500.0,0.00014997,2]
[337247218,1725549046010,-2000.0,0.00014998,2]
[337247220,1725549046021,-200.0,0.00014998,2]
[337247222,1725549046031,-1000.0,0.00014998,2]
[337247224,1725549046041,-1000.0,0.00014998,2]
[337247226,1725549046051,-1000.0,0.00014998,2]
[337247227,1725549046061,-1000.0,0.00014998,2]
[337247229,1725549046070,-1000.0,0.00014998,2]
[337247231,1725549046080,-1000.0,0.00014998,2]
[337247233,1725549046089,-1000.0,0.00014998,2]
[337247235,1725549046098,-1000.0,0.00014998,2]
[337247237,1725549046107,-1000.0,0.00014998,2]
[337247238,1725549046116,-563.69104425,0.00014998,2]
[337247245,1725549066638,500.0,0.000139,5]
[337247246,1725549144662,348.27,0.00011628,2]
[337247247,1725549144824,250.0,0.00013929,2]
[337247248,1725549144880,348.27,0.00013892,2]
[337247249,1725549185695,184.68,0.00013911,2]
[337247250,1725549209068,289.53,0.00013907,2]
[337247251,1725549236846,-207.0,0.00013999,2]
[337247252,1725549258375,-1463.97,0.00018849,30]
[337247253,1725549258412,-1501.77177509,0.0002,30]
[337247254,1725549258438,-1338.10042145,0.0002,30]
[337247255,1725549258469,-2628.15390219,0.00020919,40]
[337247256,1725549258504,-1000.0,0.00021918,30]
[337247257,1725549258537,-1463.97,0.00022011,30]
[337247258,1725549258562,-1000.0,0.0002206,30]
[337247259,1725549258589,-1000.0,0.00022202,30]
[337247260,1725549258620,-1000.0,0.00022345,30]
[337247261,1725549258646,-1000.0,0.00022487,30]
[337247262,1725549258675,-1000.0,0.00022629,30]
[337247263,1725549258701,-1000.0,0.00022772,30]
[337247264,1725549258725,-1000.0,0.00022914,30]
[337247265,1725549258958,-1000.0,0.00023056,30]
[337247266,1725549258984,-1000.0,0.00023199,30]
[337247267,1725549259015,-1000.0,0.00023341,30]
[337247268,1725549259038,-1000.0,0.00023483,30]
[337247269,1725549259061,-1000.0,0.00023626,30]
[337247270,1725549259085,-1000.0,0.00023768,30]
[337247271,1725549259110,-1000.0,0.0002391,30]
[337247272,1725549259135,-3100.0,0.00024,30]
[337247273,1725549259172,-1000.0,0.00024053,30]
[337247274,1725549259199,-1000.0,0.00024195,30]
[337247275,1725549259225,-1000.0,0.00024337,30]
[337247276,1725549259251,-1000.0,0.0002448,30]
[337247277,1725549259278,-1000.0,0.00024622,30]
[337247278,1725549259303,-561.79,0.00024657,30]
[337247279,1725549259327,-561.79,0.00024657,30]
[337247280,1725549259351,-561.79,0.00024657,30]
[337247281,1725549259374,-561.79,0.00024657,30]
[337247282,1725549259400,-561.79,0.00024657,30]
[337247283,1725549259424,-561.79,0.00024657,30]
[337247284,1725549259449,-561.79,0.00024657,30]
[337247285,1725549259485,-561.79,0.00024657,30]
[337247286,1725549259520,-561.79,0.00024657,30]
[337247287,1725549259556,-561.79,0.00024657,30]
[337247288,1725549259593,-561.79,0.00024657,30]
[337247289,1725549259633,-561.79,0.00024657,30]
[337247290,1725549259676,-561.79,0.00024657,30]
[337247291,1725549259712,-561.79,0.00024657,30]
[337247292,1725549259747,-561.79,0.00024657,30]
[337247293,1725549259781,-561.79,0.00024657,30]
[337247294,1725549259817,-561.79,0.00024657,30]
[337247295,1725549259850,-561.79,0.00024657,30]
[337247296,1725549259884,-561.79,0.00024657,30]
[337247297,1725549259923,-561.79,0.00024657,30]
[337247298,1725549259955,-561.79,0.00024657,30]
[337247299,1725549259989,-561.79,0.00024657,30]
[337247300,1725549260022,-561.79,0.00024657,30]
[337247301,1725549260054,-561.98860304,0.00024657,30]
[337247302,1725549260091,-1000.0,0.00024764,30]
[337247303,1725549260123,-1000.0,0.00024907,30]
[337247304,1725549260159,-2100.0,0.00025,30]
[337247305,1725549260191,-427.82268066,0.00025,30]
[337247306,1725549260224,-2829.47238998,0.00025,30]
[337247307,1725549260257,-1000.0,0.00025049,30]
[337247308,1725549260292,-1463.97,0.00025172,30]
[337247309,1725549260327,-1000.0,0.00025191,30]
[337247310,1725549260360,-1000.0,0.00025334,30]
[337247311,1725549260393,-1000.0,0.00025476,30]
[337247312,1725549260434,-1000.0,0.00025618,30]
[337247313,1725549260469,-1000.0,0.00025761,30]
[337247314,1725549260505,-1000.0,0.00025903,30]
[337247315,1725549260540,-718.92306624,0.00026,30]
[337247316,1725549260576,-1100.0,0.00026,60]
[337247317,1725549260613,-1000.0,0.00026045,30]
[337247318,1725549260653,-1000.0,0.00026188,30]
[337247319,1725549260689,-1000.0,0.0002633,30]
[337247320,1725549260726,-1000.0,0.00026472,30]
[337247321,1725549260759,-1000.0,0.00026614,30]
[337247322,1725549260793,-1000.0,0.00026757,30]
[337247323,1725549260829,-600.0,0.00026849,30]
[337247324,1725549260866,-600.0,0.00026849,30]
[337247325,1725549260906,-600.0,0.00026849,30]
[337247326,1725549260940,-600.0,0.00026849,30]
[337247327,1725549260973,-600.0,0.00026849,30]
[337247328,1725549261005,-600.0,0.00026849,30]
[337247329,1725549261038,-600.0,0.00026849,30]
[337247330,1725549261070,-600.0,0.00026849,30]
[337247331,1725549261102,-600.0,0.00026849,30]
[337247332,1725549261138,-600.0,0.00026849,30]
[337247333,1725549261172,-600.0,0.00026849,30]
[337247334,1725549261205,-600.0,0.00026849,30]
[337247335,1725549261238,-600.0,0.00026849,30]
[337247336,1725549261271,-600.0,0.00026849,30]
[337247337,1725549261304,-600.0,0.00026849,30]
[337247338,1725549261337,-600.0,0.00026849,30]
[337247339,1725549261369,-400.0,0.00026849,30]
[337247340,1725549261404,-1000.0,0.00026899,30]
[337247341,1725549261441,-200.0,0.00027,30]
[337247342,1725549261474,-1400.04947699,0.00027,30]
[337247343,1725549261508,-1000.0,0.00027041,30]
[337247344,1725549261545,-1000.0,0.00027184,30]
[337247345,1725549261580,-1000.0,0.00027326,30]
[337247346,1725549261614,-1570.66064977,0.0002736,120]
[337247347,1725549261652,-2000.0,0.00027397,30]
[337247348,1725549261685,-2000.0,0.00027397,30]
[337247349,1725549261719,-2000.0,0.00027397,30]
[337247350,1725549261752,-2000.0,0.00027397,30]
[337247351,1725549261787,-2000.0,0.00027397,30]
[337247352,1725549261820,-2000.0,0.00027397,30]
[337247353,1725549261852,-2000.0,0.00027397,30]
[337247354,1725549261885,-2000.0,0.00027397,30]
[337247355,1725549261917,-2000.0,0.00027397,30]
[337247356,1725549261949,-2000.0,0.00027397,30]
[337247357,1725549261981,-2000.0,0.00027397,30]
[337247358,1725549262013,-2000.0,0.00027397,30]
[337247359,1725549262046,-2000.0,0.00027397,30]
[337247360,1725549262079,-2000.0,0.00027397,30]
[337247361,1725549262113,-2000.0,0.00027397,30]
[337247362,1725549262146,-2000.0,0.00027397,30]
[337247363,1725549262185,-2000.0,0.00027397,30]
[337247364,1725549262220,-2000.0,0.00027397,30]
[337247365,1725549262253,-2000.0,0.00027397,30]
[337247366,1725549262420,-997.85570607,0.00027397,30]
[337247367,1725549262464,-200.0,0.00027397,60]
[337247368,1725549262500,-1000.0,0.00027468,30]
[337247369,1725549262535,-1000.0,0.00027611,30]
[337247370,1725549262570,-1000.0,0.00027753,30]
[337247371,1725549262607,-1000.0,0.00027895,30]
[337247372,1725549262645,-1000.0,0.00028038,30]
[337247373,1725549262685,-1000.0,0.0002818,30]
[337247374,1725549262720,-1344.81814071,0.00028297,120]
[337247375,1725549262754,-1000.0,0.00028322,30]
[337247376,1725549262787,-1463.97,0.00028333,30]
[337247377,1725549262821,-1000.0,0.00028465,30]
[337247378,1725549262855,-1000.0,0.00028607,30]
[337247379,1725549262889,-1000.0,0.00028749,30]
[337247380,1725549262927,-1000.0,0.00028892,30]
[337247381,1725549262963,-1000.0,0.00029034,30]
[337247382,1725549262998,-1000.0,0.00029176,30]
[337247383,1725549263034,-1000.0,0.00029319,30]
[337247384,1725549263081,-1000.0,0.00029461,30]
[337247385,1725549263123,-1000.0,0.00029603,30]
[337247386,1725549263167,-1000.0,0.00029746,30]
[337247387,1725549263209,-150.0,0.00029765,120]
[337247388,1725549263249,-1000.0,0.00029888,30]
[337247389,1725549263288,-10000.0,0.000299,30]
[337247390,1725549263332,-1160.49192825,0.00029999,30]
[337247391,1725549263375,-151.0,0.0003,120]
[337247392,1725549263416,-151.0,0.0003,120]
[337247393,1725549263457,-284.11495573,0.0003,30]
[337247394,1725549263494,-1000.0,0.0003,120]
[337247395,1725549263531,-2000.0,0.0003,120]
[337247396,1725549263568,-1100.0,0.0003,120]
[337247397,1725549263609,-1000.0,0.0003003,30]
[337247398,1725549263656,-200.0,0.00030137,60]
[337247399,1725549263694,-1000.0,0.00030173,30]
[337247400,1725549263733,-150.0,0.00030261,120]
[337247401,1725549263771,-1000.0,0.00030315,30]
[337247402,1725549263810,-150.0,0.00030384,120]
[337247403,1725549263848,-406.551,0.00030437,30]
[337247404,1725549263885,-1000.0,0.00030457,30]
[337247405,1725549263924,-2644.0,0.0003048,40]
[337247406,1725549263962,-1000.0,0.000306,30]
[337247407,1725549263998,-548.0,0.00030613,30]
[337247408,1725549264036,-1000.0,0.00030742,30]
[337247409,1725549264073,-250.0,0.000308,30]
[337247410,1725549264107,-1000.0,0.00030884,30]
[337247411,1725549264140,-600.0,0.000309,120]
[337247412,1725549264180,-150.0,0.00030932,120]
[337247413,1725549264218,-151.0,0.00030959,120]
[337247414,1725549264257,-1000.0,0.00031027,30]
[337247415,1725549264317,-1000.0,0.00031169,30]
[337247416,1725549264355,-150.0,0.00031222,120]
[337247417,1725549264392,-1000.0,0.00031311,30]
[337247418,1725549264432,-150.0,0.00031431,120]
[337247419,1725549264474,-1000.0,0.00031453,30]
[337247420,1725549264511,-1463.97,0.00031494,120]
[337247421,1725549264550,-1000.0,0.00031596,30]
[337247422,1725549264587,-1000.0,0.00031738,30]
[337247423,1725549264626,-150.0,0.0003174,120]
[337247424,1725549264663,-419.6335458,0.00031781,30]
[337247425,1725549264700,-1000.0,0.0003188,30]
[337247426,1725549264737,-151.0,0.00031918,120]
[337247427,1725549264784,-419.6335458,0.00031918,30]
[337247428,1725549264822,-2000.0,0.00032,120]
[337247429,1725549264858,-1000.0,0.00032023,30]
[337247430,1725549264895,-419.6335458,0.00032055,30]
[337247431,1725549264934,-1000.0,0.00032165,30]
[337247432,1725549264973,-419.6335458,0.00032192,30]
[337247433,1725549265010,-1000.0,0.00032307,30]
[337247434,1725549265049,-419.6335458,0.00032329,30]
[337247435,1725549265093,-1000.0,0.0003245,30]
[337247436,1725549265139,-419.6335458,0.00032466,30]
[337247437,1725549265186,-1000.0,0.00032592,30]
[337247438,1725549265231,-419.6335458,0.00032603,30]
[337247439,1725549265275,-2510.0,0.000327,35]
[337247440,1725549265318,-150.0,0.00032705,120]